Cogmind - Beta 14 @@@ ROGUE MODE // 2024.09.07 @ 21:30:30 Player: Tottery Result: Destroyed by G-47 Trooper with Particle Gun Performance ------------- Evolutions (2) 1000 Regions Visited (3) 600 Robots Destroyed (67) 335 Value Destroyed (1694) 1694 Prototype IDs (2) 40 Alien Tech Used (0) 0 Bonus (97) 97 TOTAL SCORE: 3766 Bonus ------- High Alert Combat Kills 97 Cogmind --------- Core Integrity 0/550 Matter 280/300 Energy 69/100 System Corruption 4% Temperature Warm (141) Movement Core (50) Location -8/Materials Parts ------- > --- POWER (1) -------- (None) > --- PROPULSION (2) --- (None) > --- UTILITY (4) ------ Structural Scanner Hacking Suite > --- WEAPON (4) ------- Light Assault Rifle Light Assault Rifle > --- INVENTORY (5) ---- Advanced Treads High-capacity Matter Pod (200) Visual Processing Unit Propulsion Shielding Light Assault Rifle Peak State ------------ > --- POWER ------------ Light Nuclear Core > --- PROPULSION ------- Armored Treads Advanced Treads > --- UTILITY ---------- High-capacity Matter Pod Structural Scanner Hardened Medium Armor Plating Hacking Suite > --- WEAPON ----------- Light Assault Rifle Heavy Assault Rifle Heavy Assault Rifle Heavy Assault Rifle > --- INVENTORY -------- Advanced Treads Visual Processing Unit Propulsion Shielding Tractor Beam Light Assault Rifle [Rating: 24] Favorites ----------- Power Light Nuclear Core Engine Ion Engine Power Core Light Nuclear Core Propulsion Advanced Treads Treads Advanced Treads Leg Aluminum Leg Utility Small Storage Unit Device Sensor Array Storage Small Storage Unit Hackware Hacking Suite Protection Hardened Medium Armor Plating Weapon Light Assault Rifle Energy Gun Medium Laser Ballistic Gun Light Assault Rifle Special Weapon Welding Torch Build | -11 -10 -9 -8 ------- Run | Yrd Mat Mat Mat Slots Evolved 4 | . . 2 2 Power . | . . . . Propulsion . | . . . . Utility 2 | . . . 2 Weapon 2 | . . 2 . Parts Attached 47 | 6 7 14 20 Power 7 | 2 . 3 2 Engine 3 | 2 . 1 . Core 4 | . . 2 2 Reactor . | . . . . Propulsion 10 | 2 2 4 2 Treads 6 | . . 4 2 Leg 4 | 2 2 . . Wheel . | . . . . Hover . | . . . . Flight . | . . . . Utility 9 | 1 1 . 7 Device 5 | . 1 . 4 Storage 2 | 1 . . 1 Processor . | . . . . Hackware 1 | . . . 1 Protection 1 | . . . 1 Artifact . | . . . . Weapon 21 | 1 4 7 9 Energy Gun 1 | 1 . . . Energy Cannon . | . . . . Ballistic Gun 19 | . 3 7 9 Ballistic Cannon . | . . . . Launcher . | . . . . Special Weapon 1 | . 1 . . Impact Weapon . | . . . . Slashing Weapon . | . . . . Piercing Weapon . | . . . . Special Melee Weapon . | . . . . Unidentified Prototypes . | . . . . Parts Lost 18 | . . . 18 Power 2 | . . . 2 Propulsion 4 | . . . 4 Utility 5 | . . . 5 Weapon 7 | . . . 7 Highest Loss Streak 9 | . . . 9 To Critical Strikes . | . . . . Average Slot Usage (%) 94 | . 93 97 91 Engine 4 | . 14 6 . Core 5 | . . 4 8 Treads 11 | . . 11 15 Leg 8 | . 28 9 . Device 14 | . 12 11 18 Storage 9 | . 14 11 6 Hackware 2 | . . . 5 Protection 1 | . . . 2 Energy Gun 4 | . 14 5 . Ballistic Gun 30 | . 5 36 33 Peak Build Rating 24 | 5 7 18 24 Average Rating 14 | 4 6 13 20 On Entrance 7 | . 5 7 18 Naked Turns . | . . . . Heaviest Build 28 | 12 14 22 28 Greatest Support 44 | 20 20 44 44 Greatest Overweight (x) 6 | 1 1 6 1 Average Overweight (x) . | . . . . Largest Inventory Capacity 8 | 8 8 8 8 Average Capacity 7 | 7 8 8 6 Most Carried 8 | 1 8 8 8 Average Carried 6 | . 5 7 6 Final Capacity 8 | 8 8 8 5 Final Carried 8 | 1 8 8 5 Class Distribution -------------------- 37% | Skirmisher 24% | Scavenger-Tank 23% | Mutant 15% | Scavenger-Skirmisher Dominant Class ---------------- Mutant | -10/Materials Skirmisher | -9/Materials Scavenger-Tank | -8/Materials Resources | -11 -10 -9 -8 ----------- Run | Yrd Mat Mat Mat Matter Collected 1823 | 260 39 767 757 Remotely 311 | . . . 311 Salvage Created 2496 | . 102 1093 1301 Parts 175 | . 8 73 94 Haulers Intercepted 1 | . . 1 . Recyclers Shooed 2 | . . 2 . Parts Field Recycled . | . . . . Retrieved Matter . | . . . . Parts Self-Destructed . | . . . . Prevented . | . . . . Kills | -11 -10 -9 -8 ------- Run | Yrd Mat Mat Mat Combat Hostiles Destroyed 45 | . 2 14 29 Guns 45 | . 2 14 29 Classes Destroyed 11 | . 2 6 3 Worker 6 | . . 5 1 Builder 2 | . 1 . 1 Hauler 1 | . . 1 . Recycler 5 | . . 3 2 Mechanic 1 | . . 1 . Operator 2 | . . . 2 Watcher 5 | . . 3 2 Swarmer 11 | . . . 11 Cutter 3 | . . . 3 Grunt 22 | . 2 9 11 Sentry 9 | . . 5 4 Best Kill Streak 7 | . 1 6 7 Combat Bots Only 6 | . 1 4 6 Max Kills in Single Turn 2 | . 1 2 2 Gunslinging 1 | . . . 1 Exploded . | . . . . Melee . | . . . . Uniques/NPCs Destroyed . | . . . . Combat | -11 -10 -9 -8 -------- Run | Yrd Mat Mat Mat Hostile Shots Fired 316 | . 13 56 247 Missed 95 | . 5 23 67 Damage Taken 3127 | . 109 427 2591 Core 667 | . 33 68 566 Absorbed by Shields 67 | . . . 67 Core Remaining (%) 89 | 100 86 83 . Volleys Fired 145 | . 13 53 79 Largest 4 | . 2 4 4 Hottest 113 | . 70 113 89 Shots Fired 514 | . 25 211 278 Gun 514 | . 25 211 278 Cannon . | . . . . Launcher . | . . . . Special . | . . . . Kinetic 473 | . 12 183 278 Thermal 41 | . 13 28 . Explosive . | . . . . Electromagnetic . | . . . . Robot Hit Streak 30 | . 3 8 30 Robot Miss Streak 6 | . 4 6 5 Penetration Max . | . . . . Secondary Targets 9 | . . . 9 Max Gunslinging Chain 2 | . . . 2 Shots Hit Robots 304 | . 10 104 190 Core Hits 138 | . 6 49 83 Critical Kills 1 | . . . 1 Critical Parts Destroyed 3 | . . . 3 Critical Strikes 6 | . . 2 4 Burn 2 | . . 2 . Destroy 4 | . . . 4 Melee Attacks . | . . . . Impact . | . . . . Slashing . | . . . . Piercing . | . . . . Sneak Attacks . | . . . . Combat Hostiles . | . . . . Follow-up Attacks . | . . . . Damage Inflicted 3728 | . 114 1247 2367 Guns 3728 | . 114 1247 2367 Cannons . | . . . . Explosions . | . . . . Melee . | . . . . Ramming . | . . . . Kinetic 3446 | . 49 1030 2367 Thermal 282 | . 65 217 . Explosive . | . . . . Electromagnetic . | . . . . Impact . | . . . . Slashing . | . . . . Piercing . | . . . . Highest Corruption 4 | . . 1 4 Average Corruption 1 | . . 1 1 Corruption Purged . | . . . . Corruption Blocked . | . . . . Effects 8 | . . 6 2 Message Errors 2 | . . 2 . Matter Fused 2 | . . 2 . Parts Rejected 1 | . . . 1 Data Loss (minor) 1 | . . 1 . Weapon Failures 2 | . . 1 1 Overload Shots . | . . . . Overflow Damage . | . . . . Projectiles . | . . . . Explosions . | . . . . Melee . | . . . . Knockbacks . | . . . . Impact . | . . . . Kinetic . | . . . . Secondary . | . . . . Self-Inflicted Damage . | . . . . Shots . | . . . . Rammed 1 | . . . 1 Targets Rammed 1 | . . . 1 Kicked . | . . . . Crushed . | . . . . Highest Temperature 377 | . 133 269 377 Average Temperature 76 | . 47 74 82 Received Heat Transfer 1543 | . 63 201 1279 Effects 5 | . . 2 3 Energy Bleed 1 | . . 1 . Interference 2 | . . 1 1 Short Circuit 1 | . . . 1 Damage (minor) 1 | . . . 1 Siege Activations . | . . . . Robots Corrupted . | . . . . Combat Hostiles . | . . . . Parts Fried . | . . . . Impact Corruptions . | . . . . Robots Melted . | . . . . Combat Hostiles . | . . . . Parts Melted 1 | . . 1 . Heat Transferred 962 | . 185 777 . Parts Sabotaged . | . . . . Parts Stolen . | . . . . Parts Stripped . | . . . . Power Chain Reactions . | . . . . Alert | -11 -10 -9 -8 ------- Run | Yrd Mat Mat Mat Peak Influence 572 | . 85 264 572 Initial 82 | . . 35 82 Average 196 | . 22 126 353 Maximum Alert Level 2 | . . 1 2 Low Security (%) 58 | 100 100 77 18 Level 1 24 | . . 22 36 Level 2 17 | . . . 44 Level 3 . | . . . . Level 4 . | . . . . Level 5 . | . . . . High Security . | . . . . Max Security . | . . . . Squads Dispatched 8 | . . 2 6 Investigation 2 | . . . 2 Extermination . | . . . . Reinforcement 5 | . . 2 3 Assault 1 | . . . 1 Garrison . | . . . . Intercept . | . . . . Searches Triggered . | . . . . Construction Impeded . | . . . . Haulers Reinforced . | . . . . Active Scanning Responses . | . . . . Cargo Convoy Interrupts . | . . . . Stealth | -11 -10 -9 -8 --------- Run | Yrd Mat Mat Mat Distress Signals 8 | . . 3 5 Communications Jammed . | . . . . Distress Signals . | . . . . Times Spotted 85 | . 5 25 55 Peak Tracking Total 9 | . 3 5 9 Tactical Retreats 9 | . 1 3 5 Traps | -11 -10 -9 -8 ------- Run | Yrd Mat Mat Mat Traps Triggered 4 | . 2 1 1 Indirectly . | . . . . Trap Hack Attempts . | . . . . Triggered . | . . . . Disarmed . | . . . . Reprogrammed . | . . . . Reused . | . . . . Traps Extracted . | . . . . Installed . | . . . . Triggered . | . . . . Machines | -11 -10 -9 -8 ---------- Run | Yrd Mat Mat Mat Machines Disabled 2 | . . 1 1 Max in Single Turn 1 | . . 1 1 Machines Repaired . | . . . . Machines Dismantled . | . . . . Machines Sabotaged . | . . . . Overloaded Fab Kills . | . . . . Hacking | -11 -10 -9 -8 --------- Run | Yrd Mat Mat Mat Machines Accessed 8 | . . 5 3 Terminals 8 | . . 5 3 Fabricators . | . . . . Repair Stations . | . . . . Recycling Units . | . . . . Scanalyzers . | . . . . Garrison Access . | . . . . Total Hacks 21 | . . 12 9 Successful 13 | . . 10 3 Failed 8 | . . 2 6 Catastrophic 1 | . . . 1 Database Lockouts . | . . . . Manual 2 | . . 1 1 Terminals 21 | . . 12 9 Fabricators . | . . . . Repair Stations . | . . . . Recycling Units . | . . . . Scanalyzers . | . . . . Garrison Access . | . . . . Terminal Hacks 13 | . . 10 3 Record 4 | . . 2 2 Robot Analysis 1 | . . 1 . Prototype ID Bank 1 | . . . 1 Alert Level 2 | . . 2 . Unreport Threat 1 | . . 1 . Locate Traps 1 | . . 1 . Dispatch Records 1 | . . 1 . Hauler Manifests 1 | . . 1 . Zone Layout 1 | . . 1 . Fabricator Hacks . | . . . . Repair Station Hacks . | . . . . Recycling Unit Hacks . | . . . . Scanalyzer . | . . . . Garrison Access Hacks . | . . . . Unauthorized Hacks . | . . . . Terminals . | . . . . Fabricators . | . . . . Repair Stations . | . . . . Recycling Units . | . . . . Scanalyzers . | . . . . Garrison Access . | . . . . Data Cores Recovered . | . . . . Used . | . . . . Hacking Detections 7 | . . 4 3 Full Trace Events 2 | . . . 2 Feedback Events 1 | . . . 1 Corruption 1 | . . . 1 Feedback Blocked . | . . . . Robot Schematics Acquired . | . . . . Robots Built . | . . . . Authchips . | . . . . Time . | . . . . Total Robot Build Rating . | . . . . Part Schematics Acquired . | . . . . Parts Built . | . . . . Authchips . | . . . . Time . | . . . . Total Part Build Rating . | . . . . Parts Repaired . | . . . . Time . | . . . . Parts Recycled . | . . . . Recycled Matter . | . . . . Retrieved Matter . | . . . . Retrieved Components . | . . . . Parts Scanalyzed . | . . . . Part Schematics Acquired . | . . . . Parts Damaged . | . . . . Bothacking | -11 -10 -9 -8 ------------ Run | Yrd Mat Mat Mat Used RIF Installer . | . . . . Robots Hacked . | . . . . Non-combat . | . . . . Combat . | . . . . Robot Hacks Applied . | . . . . Relay Couplers Released . | . . . . Fabnet Peak Effective % . | . . . . Robots Rewired . | . . . . Allies Hacked . | . . . . Hacks Repelled . | . . . . Allies | -11 -10 -9 -8 -------- Run | Yrd Mat Mat Mat Total Allies . | . . . . Largest Group . | . . . . Highest-Rated Group . | . . . . Highest-Rated Ally . | . . . . Total Orders . | . . . . Ally Attacks . | . . . . Total Damage . | . . . . Kills . | . . . . Allies Corrupted . | . . . . Allies Melted . | . . . . Intel | -11 -10 -9 -8 ------- Run | Yrd Mat Mat Mat Robot Analysis Total 1 | . . 1 . Derelict Logs Recovered . | . . . . Drone Launches . | . . . . Drone Recoveries . | . . . . Exploration | -11 -10 -9 -8 ------------- Run | Yrd Mat Mat Mat Turns Passed 2346 | 62 356 1010 918 Spaces Moved 1240 | 41 223 578 398 Core 18 | 3 . 1 14 Treads 668 | . . 284 384 Legs 554 | 38 223 293 . Wheels . | . . . . Hover . | . . . . Flight . | . . . . Fastest Speed 50 | 50 120 120 50 Average Speed 137 | 131 120 133 152 Slowest Speed 350 | 190 190 350 250 Overloaded Moves . | . . . . Propulsion Burnouts . | . . . . Robots Hopped . | . . . . Cave-ins Triggered . | . . . . Exploration Rate (%) 29 | 3 31 45 37 Regions Visited 3 Branch Regions . Pre-discovered Areas . | . . . . Known Exits Taken . | . . . . Unknown Exits Taken 3 | 1 1 1 . Scrap Searched . | . . . . Spaces Dug . | . . . . Terrain Destroyed . | . . . . Melee . | . . . . Projectile . | . . . . AOE . | . . . . Terrain Rammed . | . . . . Walls Destroyed . | . . . . Machines Disabled . | . . . . Actions | -11 -10 -9 -8 --------- Run | Yrd Mat Mat Mat Total 1582 | 46 284 711 541 Wait 96 | . 29 35 32 Move 1237 | 40 222 577 398 Hop . | . . . . Pick Up 27 | . 10 11 6 Fast Attach 26 | 5 6 4 11 Attach 6 | . . 2 4 Detach 1 | . . 1 . Swap 15 | 1 1 8 5 Drop 28 | . 3 20 5 Fire 145 | . 13 53 79 Melee . | . . . . Ram . | . . . . Kick . | . . . . Crush 1 | . . . 1 Escape Stasis . | . . . . Rewire . | . . . . Trap . | . . . . Miscellaneous . | . . . . Route ------- -11/Scrapyard -10/Materials -9/Materials (discovered 2 exits: *Mat / [*Min]) -8/Materials History --------- Turn | Location | Event 6 | -11/Scrapyard | Discovered new exit (range 15) 63 | -11/Scrapyard | Entered Materials 300 | -10/Materials | Build established: Mutant 332 | -10/Materials | Discovered new exit (range 11) 419 | -10/Materials | Entered another Materials area 419 | -9/Materials | Evolved 2 slots: Weapon x2 627 | -9/Materials | Discovered new exit (range 15) 802 | -9/Materials | Build established: Skirmisher 867 | -9/Materials | Discovered new exit (range 12) 1429 | -9/Materials | Entered another Materials area 1429 | -8/Materials | Evolved 2 slots: Utility x2 1715 | -8/Materials | Lost 5 parts (1p1n1u2w) 2098 | -8/Materials | Build established: Scavenger-Tank 2229 | -8/Materials | First assault squad dispatched 2319 | -8/Materials | Core integrity fell below 50% 2343 | -8/Materials | Core integrity fell below 20% 2347 | -8/Materials | Destroyed by G-47 Trooper with Particle Gun Last Messages --------------- 02324_ System corrupted: Broken Hvy. Assault Rifle rejected. 02324_ Lgt. Nuclear Core destroyed. 02326_ Hvy. Assault Rifle destroyed. 02327_ K-01 Serf collects debris. 02328_ Adv. Treads destroyed. 02328_ Hvy. Assault Rifle destroyed. 02328_ System corrupted by crushing effect (+3). 02331_ Hrd. Medium Armor Plating destroyed. 02332_ K-01 Serf collects debris. 02332_ Lgt. Assault Rifle destroyed. 02332_ Slammed into K-01 Serf. 02334_ Tractor Beam destroyed. 02335_ Overheating: System interference. 02335_ Structural Scanner temporarily disabled. 02336_ Acquired Broken Hvy. Assault Rifle. 02336_ Arm. Treads destroyed. 02337_ Acquired 2 matter. 02339_ Broken Hvy. Assault Rifle destroyed. 02345_ Acquired Lgt. Assault Rifle. Map ----- +----------------------------------------------------+ | ?## ##?????????????## ##? | | ?############+########## ##?????????????## ##? | | ?###### ##### ################## ### | | ?????## """ """ ##### ################## ### | | ?????## """ """ /##?## | | ?????## """ """ ##?## % ! | | ?????## "Y" ##?## % %% % % = =% | | ?????##= ! """ ##?## ################!*%### | | ?????#################?## # !! ###### ==### | | ?????########## ? # # ! " ###### ### | | ??????????????????????? # #=[ T ## [# # | | ??????????????????? """ # #= ! ##" # # ? | | ??????????????????? """ + %+%""" ##T !# # " | | ??????????????????? """ # %#!""" ] ##" # # " | | ??????????????????? """ # # """ ## ]# # " | | ??????????????????? """ # # ##/ # # ? | | ??????????????????? # %%#### ####### # #| | | ???????????????????###### #############+## # | | ???????????????????###### ### | | ???????????????????????##% ### | | ???????????????????????## % ### | | ?????????????????######## % = ### | | ?????????????????######## k " %! ### | | ?????????????????"" # #####+####### ## | | ?????????????## "T" """ # # / " ! ### ## | | ?????????????## """=#@ # ### ## | | ?????????????## """[+% + """ """ ### ## | | ?????????????## """ #%%=# """ """ ### ## | | ?????????????## # = # """ """ ### ## | | ?????????????## # g# ###^^ ## | | ?????????????##[ # # ""T"" ### ## | | ?????????????############k #! """"" ### ### | | ?????????????############ k############# ### | | ???????????????????????## ##########T## ##? | | ???????????????????????## ##? | | ???????????????????????##b ##? | | ?????????????????????#### gg ?? ##? | | ?????????????????????#### g ????????? | | ?????????????????????## ????????? | | ?????????????????????## ????????? | | ?????????????????????## ?????????? | | ?????????????????????## ########### ?????????? | | ????????????????????? # ########### ??????????? | | ????????????????????? # ##?????????????????????? | | ????????????????????? # ##?????????????????????? | | ????????????????????? # ##?????????????????????? | | ????????????????????? + ##?????????????????????? | | ????????????????????? # ##?????????????????????? | | ????????????????????? # ####?????????????????????? | | ????????????????????? # ####?????????????????????? | +----------------------------------------------------+ Best States ------------- Heat Dissipation 31 Energy Generation 14 Energy Capacity 265 Matter Stores 500 Matter Capacity 500 Sight Range 16 Robot Scan Range 14 Terrain Scan Density 10 Armor Coverage 225 Evasion (%) 55 Recoil Reduction 2 Offensive Hacking 10 Item Schematics ----------------- None Robot Schematics ------------------ None Fabricated ------------ Nothing Alien Tech Used ----------------- None Achievements -------------- Everything Is Under Control Challenges ------------ None Game ------ Seed ClaymoresGlidesysScreen Manual? 0 Play Time 00:34:55 Cumulative 15.9 hours Start 2024.09.07 @ 16:28:59 End 2024.09.07 @ 21:30:30 Sessions 7 Manual Loads 0 Difficulty Rogue Special Mode None Game No. 16 Rogue 16 Adventurer 0 Explorer 0 Win Type - Total 0 Types 0/0/0/0/0/0/0/0/0 Lore% 3 Gallery% 16 Achievement% 15 Wizard Run 0 Options --------- Layout 1 ASCII 0 Keyboard 1 Movement Arrows Keybinds 0 Fullscreen 2 Font 32/SmallcapsGlow Map View 50x35 Zoom Use 0% Tactical HUD 1 Map Filters NONE Filters NONE Steam 1 RUN: 93ae9a2a-1be0-4b71-926f-e90e6bdc45e0